Workbook

Sheet Лист2
C3: План учебного процесса 35.01.27 Мастер сельскохозяйственного производства (группы 134А)
C4: Индекс | D4: Наименование циклов, дисциплин, профессиональных модулей, МДК, практик | E4: Промежуточная аттестация | H4: Объем образовательной нагрузки | I4: Учебная нагрузка обучающихся | Q4: Распределение учебной нагрузки по курсам и семестрам (час. в семестр)
E5: Зачеты | F5: Дифференцированный зачеты | G5: Экзамены | I5: Самостоятельная учебная работа | J5: По взаимодействии с преподавателем | Q5: 1 курс | S5: 2 курс
J6: Нагрузка на дисциплины и МДК | N6: Практические занятия | O6: Консультации | P6: Промежуточная аттестация, ГИА
J7: Всего учебных занятий | K7: в т.ч. по учебным дисциплинам и МДК | Q7: 1 семестр | R7: 2 семестр | S7: 3 семестр | T7: 4 семестр
K8: Теоретическое занятие | L8: Лабораторно-практические занятия | M8: Курсовые работы, проекты
C9: 1 | D9: 2 | E9: 3 | F9: 4 | G9: 5 | H9: 6 | I9: 7 | J9: 8 | K9: 9 | L9: 10 | M9: 11 | N9: 12 | O9: 13 | P9: 14 | Q9: 15 | R9: 16 | S9: 16 | T9: 17
E10: =E11+E28+E35+E43+E56 -> 2 | F10: =F11+F28+F35+F43+F56 -> 23 | G10: =G11+G28+G35+G43+G56 -> 12 | H10: =H11+H28+H35+H43+H56 -> 2952 | I10: =I11+I28+I35+I43+I56 -> 32 | J10: =J11+J28+J35+J43+J56 -> 2920 | K10: =K11+K28+K35+K43+K56 -> 1147 | L10: =L11+L28+L35+L43+L56 -> 1147 | M10: =M11+M28+M35+M43+M56 -> 72 | N10: =N11+N28+N35+N43+N56 -> 396 | O10: =O11+O28+O35+O43+O56 -> 16 | P10: =P11+P28+P35+P43+P56 -> 142 | Q10: =Q11+Q28+Q35+Q43+Q56 -> 612 | R10: =R11+R28+R35+R43+R56 -> 864 | S10: =S11+S28+S35+S43+S56 -> 612 | T10: =T11+T28+T35+T43+T56 -> 864 | Y10: =SUM(Q10:T10) -> 2952
C11: Блок ООД | D11: Общеобразовательный цикл | E11: =COUNT(E12:E27) -> 2 | F11: =COUNT(F12:F27) -> 10 | G11: =COUNT(G12:G27) -> 4 | H11: =SUM(H12:H27) -> 1476 | I11: 0 | J11: =K11+L11+M11+N11+O11+P11 -> 1476 | K11: =SUM(K12:K27) -> 571 | L11: =SUM(L12:L27) -> 849 | M11: 0 | N11: 0 | O11: =SUM(O12:O27) -> 8 | P11: =SUM(P12:P27) -> 48 | Q11: =SUM(Q12:Q27) -> 612 | R11: =SUM(R12:R27) -> 864 | S11: =SUM(S12:S27) -> 0 | T11: =SUM(T12:T27) -> 0 | Y11: =SUM(Q11:T11) -> 1476
C12: ОУД 01 | D12: Русский язык | G12: 1 | H12: =SUM(K12:P12) -> 84 | I12: 0 | J12: =K12+L12+M12+N12+O12+P12 -> 84 | K12: 34 | L12: 42 | M12: 0 | N12: 0 | O12: 2 | P12: 6 | Q12: 84 | R12: 0 | S12: 0 | T12: 0 | Y12: =SUM(Q12:T12) -> 84
C13: ОУД 02 | D13: Литература | F13: 2 | H13: 114 | I13: 0 | J13: =K13+L13+M13+N13+O13+P13 -> 114 | K13: 40 | L13: 72 | M13: 0 | N13: 0 | O13: 0 | P13: 2 | Q13: 48 | R13: 66 | S13: 0 | T13: 0 | Y13: =SUM(Q13:T13) -> 114
C14: ОУД 03 | D14: Математика | G14: 2 | H14: =SUM(Q14:T14) -> 232 | I14: 0 | J14: =K14+L14+M14+N14+O14+P14 -> 232 | K14: 70 | L14: 154 | M14: 0 | N14: 0 | O14: 2 | P14: 6 | Q14: 122 | R14: 110 | S14: 0 | T14: 0 | Y14: =SUM(Q14:T14) -> 232
C15: ОУД 04 | D15: Иностранный язык | F15: 2 | H15: 180 | I15: 0 | J15: =K15+L15+M15+N15+O15+P15 -> 180 | K15: 58 | L15: 120 | M15: 0 | N15: 0 | O15: 0 | P15: 2 | Q15: 60 | R15: 120 | S15: 0 | T15: 0 | Y15: =SUM(Q15:T15) -> 180
C16: ОУД 05 | D16: Информатика | F16: 2 | H16: 108 | I16: 0 | J16: =K16+L16+M16+N16+O16+P16 -> 108 | K16: 26 | L16: 80 | M16: 0 | N16: 0 | O16: 0 | P16: 2 | Q16: 30 | R16: 78 | S16: 0 | T16: 0 | Y16: =SUM(Q16:T16) -> 108
C17: ОУД 06 | D17: Физика | G17: 2 | H17: 100 | I17: 0 | J17: =K17+L17+M17+N17+O17+P17 -> 100 | K17: 36 | L17: 56 | M17: 0 | N17: 0 | O17: 2 | P17: 6 | Q17: 60 | R17: 40 | S17: 0 | T17: 0 | Y17: =SUM(Q17:T17) -> 100
C18: ОУД 07 | D18: Химия | F18: 2 | H18: 78 | I18: 0 | J18: =K18+L18+M18+N18+O18+P18 -> 78 | K18: 50 | L18: 26 | M18: 0 | N18: 0 | O18: 0 | P18: 2 | Q18: 34 | R18: 44 | S18: 0 | T18: 0 | Y18: =SUM(Q18:T18) -> 78
C19: ОУД 08 | D19: Биология | G19: 2 | H19: 72 | I19: 0 | J19: =K19+L19+M19+N19+O19+P19 -> 72 | K19: 42 | L19: 22 | M19: 0 | N19: 0 | O19: 2 | P19: 6 | Q19: 48 | R19: 24 | S19: 0 | T19: 0 | Y19: =SUM(Q19:T19) -> 72
C20: ОУД 09 | D20: История | F20: 2 | H20: 136 | I20: 0 | J20: =K20+L20+M20+N20+O20+P20 -> 136 | K20: 62 | L20: 72 | M20: 0 | N20: 0 | O20: 0 | P20: 2 | Q20: 40 | R20: 96 | S20: 0 | T20: 0 | Y20: =SUM(Q20:T20) -> 136
C21: ОУД 10 | D21: Обществознание | F21: 2 | H21: 72 | I21: 0 | J21: =K21+L21+M21+N21+O21+P21 -> 72 | K21: 50 | L21: 20 | M21: 0 | N21: 0 | O21: 0 | P21: 2 | Q21: 0 | R21: 72 | S21: 0 | T21: 0 | Y21: =SUM(Q21:T21) -> 72
C22: ОУД 11 | D22: География | F22: 2 | H22: 36 | I22: 0 | J22: =K22+L22+M22+N22+O22+P22 -> 36 | K22: 22 | L22: 12 | M22: 0 | N22: 0 | O22: 0 | P22: 2 | Q22: 0 | R22: 36 | S22: 0 | T22: 0 | Y22: =SUM(Q22:T22) -> 36
C23: ОУД 12 | D23: Физическая культура | E23: 1 | H23: 72 | I23: 0 | J23: =K23+L23+M23+N23+O23+P23 -> 72 | K23: 7 | L23: 63 | M23: 0 | N23: 0 | O23: 0 | P23: 2 | Q23: 35 | R23: 37 | S23: 0 | T23: 0 | Y23: =SUM(Q23:T23) -> 72
C24: ОУД 13 | D24: Основы безопасности защиты Родины | F24: 2 | H24: 80 | I24: 0 | J24: =K24+L24+M24+N24+O24+P24 -> 80 | K24: 40 | L24: 38 | M24: 0 | N24: 0 | O24: 0 | P24: 2 | Q24: 0 | R24: 80 | S24: 0 | T24: 0 | Y24: =SUM(Q24:T24) -> 80
C25: ОУД 14 | D25: Родная литература | F25: 2 | H25: 40 | I25: 0 | J25: =K25+L25+M25+N25+O25+P25 -> 40 | K25: 10 | L25: 28 | M25: 0 | N25: 0 | O25: 0 | P25: 2 | Q25: 15 | R25: 25 | S25: 0 | T25: 0 | Y25: =SUM(Q25:T25) -> 40
C26: ОУД.15 | D26: Родной язык | E26: 1 | H26: 36 | I26: 0 | J26: =K26+L26+M26+N26+O26+P26 -> 36 | K26: 10 | L26: 24 | M26: 0 | N26: 0 | O26: 0 | P26: 2 | Q26: 36 | R26: 0 | S26: 0 | T26: 0 | Y26: =SUM(Q26:T26) -> 36
C27: ОУД 16 | D27: Индивидуальный проект | F27: 2 | H27: 36 | I27: 0 | J27: =K27+L27+M27+N27+O27+P27 -> 36 | K27: 14 | L27: 20 | M27: 0 | N27: 0 | O27: 0 | P27: 2 | Q27: 0 | R27: 36 | S27: 0 | T27: 0 | Y27: =SUM(Q27:T27) -> 36
C28: СГ.00 | D28: Социально-гуманитарный цикл | E28: =COUNTA(E29:E34) -> 0 | F28: =COUNTA(F29:F34) -> 3 | G28: =COUNTA(G29:G34) -> 3 | H28: =SUM(H29:H34) -> 218 | I28: =SUM(I29:I34) -> 2 | J28: =K28+L28+M28+N28+O28+P28 -> 216 | K28: =SUM(K29:K34) -> 98 | L28: =SUM(L29:L34) -> 100 | M28: 0 | N28: =SUM(N29:N34) -> 0 | O28: 0 | P28: =SUM(P29:P34) -> 18 | Q28: =SUM(Q29:Q34) -> 0 | R28: =SUM(R29:R34) -> 0 | S28: =SUM(S29:S34) -> 94 | T28: =SUM(T29:T34) -> 124 | Y28: =SUM(Q28:T28) -> 218
C29: СГ.01 | D29: История России | F29: 4 | H29: =I29+J29 -> 48 | I29: 2 | J29: =K29+L29+M29+N29+O29+P29 -> 46 | K29: 28 | L29: 16 | M29: 0 | N29: 0 | P29: 2 | Q29: 0 | R29: 0 | S29: 22 | T29: 26 | Y29: =SUM(Q29:T29) -> 48
C30: СГ.02 | D30: Иностранный язык в проф деятельности | G30: 4 | H30: =I30+J30 -> 30 | I30: 0 | J30: =K30+L30+M30+N30+O30+P30 -> 30 | K30: 10 | L30: 16 | M30: 0 | N30: 0 | O30: 0 | P30: 4 | Q30: 0 | R30: 0 | S30: 0 | T30: 30 | Y30: =SUM(Q30:T30) -> 30
C31: СГ.03 | D31: Безопасность жизнедеятельности | G31: 4 | H31: =I31+J31 -> 36 | I31: 0 | J31: =K31+L31+M31+N31+O31+P31 -> 36 | K31: 16 | L31: 16 | M31: 0 | O31: 0 | P31: 4 | Q31: 0 | R31: 0 | S31: 0 | T31: 36 | Y31: =SUM(Q31:T31) -> 36
C32: СГ.04 | D32: Физическая культура | F32: 3 | H32: =I32+J32 -> 40 | I32: 0 | J32: =K32+L32+M32+N32+O32+P32 -> 40 | K32: 12 | L32: 26 | M32: 0 | O32: 0 | P32: 2 | Q32: 0 | R32: 0 | S32: 40 | T32: 0 | Y32: =SUM(Q32:T32) -> 40
C33: СГ.05 | D33: Основы бережливого производства | F33: 4 | H33: =I33+J33 -> 32 | I33: 0 | J33: =K33+L33+M33+N33+O33+P33 -> 32 | K33: 16 | L33: 14 | M33: 0 | N33: 0 | O33: 0 | P33: 2 | Q33: 0 | R33: 0 | S33: 0 | T33: 32 | Y33: =SUM(Q33:T33) -> 32
C34: СГ.06 | D34: Основы финансовой грамотности | G34: 3 | H34: =I34+J34 -> 32 | I34: 0 | J34: =K34+L34+M34+N34+O34+P34 -> 32 | K34: 16 | L34: 12 | M34: 0 | N34: 0 | O34: 0 | P34: 4 | Q34: 0 | R34: 0 | S34: 32 | T34: 0 | Y34: =SUM(Q34:T34) -> 32
C35: ОП.00 | D35: Общепрофессиональный цикл | E35: =COUNTA(E36:E42) -> 0 | F35: =COUNTA(F36:F42) -> 4 | G35: =COUNTA(G36:G42) -> 3 | H35: =SUM(H36:H42) -> 230 | I35: =SUM(I36:I42) -> 6 | J35: =SUM(J36:J42) -> 224 | K35: =SUM(K36:K42) -> 122 | L35: =SUM(L36:L42) -> 82 | M35: 0 | N35: 0 | O35: 0 | P35: =SUM(P36:P42) -> 20 | Q35: =SUM(Q36:Q42) -> 0 | R35: =SUM(R36:R42) -> 0 | S35: =SUM(S36:S42) -> 150 | T35: =SUM(T36:T42) -> 80 | Y35: =SUM(Q35:T35) -> 230
C36: ОП.01 | D36: Основы инженерной графики | G36: 3 | H36: =I36+J36 -> 38 | I36: 6 | J36: =K36+L36+M36+N36+O36+P36 -> 32 | K36: 16 | L36: 12 | M36: 0 | N36: 0 | O36: 0 | P36: 4 | Q36: 0 | R36: 0 | S36: 38 | T36: 0 | Y36: =SUM(Q36:T36) -> 38
C37: ОП.02 | D37: Основы материаловедения и технология общеслесарных работ | F37: 4 | H37: =I37+J37 -> 32 | I37: 0 | J37: =K37+L37+M37+N37+O37+P37 -> 32 | K37: 16 | L37: 14 | M37: 0 | N37: 0 | O37: 0 | P37: 2 | Q37: 0 | R37: 0 | S37: 0 | T37: 32 | Y37: =SUM(Q37:T37) -> 32
C38: ОП.03 | D38: Техническая механика с основами технических измерений | G38: 3 | H38: =I38+J38 -> 32 | I38: 0 | J38: =K38+L38+M38+N38+O38+P38 -> 32 | K38: 18 | L38: 10 | M38: 0 | N38: 0 | O38: 0 | P38: 4 | Q38: 0 | R38: 0 | S38: 32 | T38: 0 | Y38: =SUM(Q38:T38) -> 32
C39: ОП.04 | D39: Основы электротехнии | F39: 3 | H39: =I39+J39 -> 32 | I39: 0 | J39: =K39+L39+M39+N39+O39+P39 -> 32 | K39: 20 | L39: 10 | M39: 0 | N39: 0 | O39: 0 | P39: 2 | Q39: 0 | R39: 0 | S39: 32 | T39: 0 | Y39: =SUM(Q39:T39) -> 32
C40: ОП.05 | D40: Основы агрономии | G40: 3 | H40: =I40+J40 -> 32 | I40: 0 | J40: =K40+L40+M40+N40+O40+P40 -> 32 | K40: 16 | L40: 12 | M40: 0 | N40: 0 | O40: 0 | P40: 4 | Q40: 0 | R40: 0 | S40: 32 | T40: 0 | Y40: =SUM(Q40:T40) -> 32
C41: ОП.06 | D41: Основы зоотехники | F41: 4 | H41: =I41+J41 -> 32 | I41: 0 | J41: =K41+L41+M41+N41+O41+P41 -> 32 | K41: 18 | L41: 12 | M41: 0 | N41: 0 | O41: 0 | P41: 2 | Q41: 0 | R41: 0 | S41: 16 | T41: 16 | Y41: =SUM(Q41:T41) -> 32
C42: ОП.07 | D42: Основы микробиологии, санитарии и гигиены | F42: 4 | H42: =I42+J42 -> 32 | I42: 0 | J42: =K42+L42+M42+N42+O42+P42 -> 32 | K42: 18 | L42: 12 | M42: 0 | N42: 0 | O42: 0 | P42: 2 | Q42: 0 | R42: 0 | S42: 0 | T42: 32 | Y42: =SUM(Q42:T42) -> 32
C43: ПМ.00 | D43: Профессиональные модули | E43: =SUM(E44,E51) -> 0 | F43: =SUM(F44,F51) -> 6 | G43: =SUM(G44,G51) -> 2 | H43: =SUM(H44,H51) -> 992 | I43: =SUM(I44,I51) -> 24 | J43: =SUM(J44,J51) -> 968 | K43: =SUM(K44,K51) -> 356 | L43: =SUM(L44,L51) -> 116 | M43: =SUM(M44,M51) -> 72 | N43: =SUM(N44,N51) -> 396 | O43: =SUM(O44,O51) -> 8 | P43: =SUM(P44,P51) -> 20 | Q43: =SUM(Q44,Q51) -> 0 | R43: =SUM(R44,R51) -> 0 | S43: =SUM(S44,S51) -> 368 | T43: =SUM(T44,T51) -> 624 | Y43: =SUM(Q43:T43) -> 992
C44: ПМ.02 | D44: Выполнение механизированных работ в сельскохозяйственном производстве с поддержанием технического состояния средств механизации | E44: 0 | F44: 4 | G44: 1 | H44: =SUM(H45:H50) -> 820 | I44: =SUM(I45:I50) -> 8 | J44: =SUM(J45:J50) -> 812 | K44: =SUM(K45:K50) -> 284 | L44: =SUM(L45:L50) -> 116 | M44: =SUM(M45:M50) -> 0 | N44: =SUM(N45:N50) -> 396 | O44: =SUM(O45:O50) -> 4 | P44: =SUM(P45:P50) -> 12 | Q44: =SUM(Q45:Q50) -> 0 | R44: =SUM(R45:R50) -> 0 | S44: =SUM(S45:S50) -> 324 | T44: =SUM(T45:T50) -> 496 | Y44: =SUM(Q44:T44) -> 820
C45: МДК.02.01 | D45: Устройство тракторов и сельскохозяйственных машин и оборудования | F45: 4 | H45: =I45+J45 -> 216 | I45: 8 | J45: =K45+L45+M45+N45+O45+P45 -> 208 | K45: 152 | L45: 54 | P45: 2 | S45: 116 | T45: 100 | Y45: =SUM(Q45:T45) -> 216
C46: МДК.02.02 | D46: Ремонт и техническое обслуживание сельскохозяйственных машин и оборудования | F46: 3 | H46: =I46+J46 -> 36 | I46: 0 | J46: =K46+L46+M46+N46+O46+P46 -> 36 | K46: 20 | L46: 14 | M46: 0 | N46: 0 | O46: 0 | P46: 2 | Q46: 0 | R46: 0 | S46: 36 | T46: 0 | Y46: =SUM(Q46:T46) -> 36
C47: МДК.02.03 | D47: Технологии выполнения механизированных работ в сельском хозяйстве | F47: 4 | H47: =I47+J47 -> 162 | I47: 0 | J47: =K47+L47+M47+N47+O47+P47 -> 162 | K47: 112 | L47: 48 | M47: 0 | N47: 0 | O47: 0 | P47: 2 | Q47: 0 | R47: 0 | S47: 100 | T47: 62 | Y47: =SUM(Q47:T47) -> 162
C48: УП.02 | D48: Учебная практика | F48: 4 | H48: =I48+J48 -> 144 | I48: 0 | J48: =K48+L48+M48+N48+O48+P48 -> 144 | K48: 0 | L48: 0 | M48: 0 | N48: 144 | O48: 0 | P48: 0 | Q48: 0 | R48: 0 | S48: 72 | T48: 72 | Y48: =SUM(Q48:T48) -> 144
C49: ПП.02 | D49: Производственная практика | H49: =I49+J49 -> 252 | I49: 0 | J49: =K49+L49+M49+N49+O49+P49 -> 252 | K49: 0 | L49: 0 | M49: 0 | N49: 252 | O49: 0 | P49: 0 | Q49: 0 | R49: 0 | S49: 0 | T49: 252 | Y49: =SUM(Q49:T49) -> 252
D50: Экзамен ПМ 02 | G50: 4 | H50: =I50+J50 -> 10 | I50: 0 | J50: =K50+L50+M50+N50+O50+P50 -> 10 | K50: 0 | L50: 0 | M50: 0 | N50: 0 | O50: 4 | P50: 6 | Q50: 0 | R50: 0 | S50: 0 | T50: 10 | Y50: =SUM(Q50:T50) -> 10
C51: ПМ 03 | D51: Выполнение работ по профессии: 19205 Тракторист-машинист сельскохозяйственного производства | E51: 0 | F51: 2 | G51: 1 | H51: =SUM(H52:H55) -> 172 | I51: =SUM(I52:I55) -> 16 | J51: =SUM(J52:J55) -> 156 | K51: =SUM(K52:K55) -> 72 | L51: =SUM(L52:L55) -> 0 | M51: =SUM(M52:M55) -> 72 | N51: =SUM(N52:N55) -> 0 | O51: =SUM(O52:O55) -> 4 | P51: =SUM(P52:P55) -> 8 | Q51: =SUM(Q52:Q55) -> 0 | R51: =SUM(R52:R55) -> 0 | S51: =SUM(S52:S55) -> 44 | T51: =SUM(T52:T55) -> 128 | Y51: =SUM(Q51:T51) -> 172
C52: МДК 03.01 | D52: Освоение профессии 19205 Тракторист-машинист сельскохозяйственного производства(B,C,E,F) | F52: 4 | H52: =I52+J52 -> 90 | I52: 16 | J52: =K52+L52+M52+N52+O52+P52 -> 74 | K52: 72 | M52: 0 | N52: 0 | O52: 0 | P52: 2 | Q52: 0 | R52: 0 | S52: 26 | T52: 64 | Y52: =SUM(Q52:T52) -> 90
C53: УП.03 | D53: Учебная практика | F53: 4 | H53: =I53+J53 -> 36 | I53: 0 | J53: =K53+L53+M53+N53+O53+P53 -> 36 | K53: 0 | L53: 0 | M53: 36 | N53: 0 | O53: 0 | P53: 0 | Q53: 0 | R53: 0 | S53: 18 | T53: 18 | Y53: =SUM(Q53:T53) -> 36
C54: ПП.03 | D54: Производственная практика | H54: =I54+J54 -> 36 | I54: 0 | J54: =K54+L54+M54+N54+O54+P54 -> 36 | K54: 0 | L54: 0 | M54: 36 | N54: 0 | O54: 0 | P54: 0 | Q54: 0 | R54: 0 | S54: 0 | T54: 36 | Y54: =SUM(Q54:T54) -> 36
D55: Экзамен ПМ 03 | G55: 4 | H55: =I55+J55 -> 10 | I55: 0 | J55: =K55+L55+M55+N55+O55+P55 -> 10 | K55: 0 | L55: 0 | M55: 0 | N55: 0 | O55: 4 | P55: 6 | Q55: 0 | R55: 0 | S55: 0 | T55: 10 | Y55: =SUM(Q55:T55) -> 10
C56: ГИА.00 | D56: Государственная итоговая аттестация | H56: =I56+J56 -> 36 | I56: 0 | J56: =K56+L56+M56+N56+O56+P56 -> 36 | K56: 0 | L56: 0 | M56: 0 | N56: 0 | P56: 36 | Q56: 0 | R56: 0 | S56: 0 | T56: 36 | Y56: =SUM(Q56:T56) -> 36
D57: Итого | E57: =E10 -> 2 | F57: =F10 -> 23 | G57: =G10 -> 12 | H57: =H10 -> 2952 | I57: =I10 -> 32 | J57: =J10 -> 2920 | K57: =K10 -> 1147 | L57: =L10 -> 1147 | M57: =M10 -> 72 | N57: =N10 -> 396 | O57: =O10 -> 16 | P57: =P10 -> 142 | Q57: =Q10 -> 612 | R57: =R10 -> 864 | S57: =S10 -> 612 | T57: =T10 -> 864 | Y57: =SUM(Q57:T57) -> 2952
C58: Государственная (итоговая) аттестация 1. Демонстрационный экзамен: с 22.06.2026 по 29.06.2026 года | L58: Всего | M58: часов дисциплин и МДК (в т.ч, консультации и экзамены) | P58: =SUM(Q58:T58) -> 2952 | Q58: =SUM(Q11,Q28,Q35,Q43,Q56) -> 612 | R58: =SUM(R11,R28,R35,R43,R56) -> 864 | S58: =SUM(S11,S28,S35,S43,S56) -> 612 | T58: =SUM(T11,T28,T35,T43,T56) -> 864
M59: часов учебной практики 5 недель | P59: =SUM(Q59:T59) -> 180 | S59: =S48+S53 -> 90 | T59: =T48+T53 -> 90
M60: часов производ практики 8 недель | P60: =SUM(Q60:T60) -> 288 | S60: =S49+S54 -> 0 | T60: =T49+T54 -> 288
M61: часов ГИА | P61: =SUM(Q61:T61) -> 36 | T61: 36
M62: количество экзаменов | P62: =SUM(Q62:T62) -> 12 | Q62: 1 | R62: 3 | S62: 4 | T62: 4
M63: количество дифф. зачетов | P63: =SUM(Q63:T63) -> 23 | R63: 10 | S63: 3 | T63: 10
M64: количество зачетов | P64: =SUM(Q64:T64) -> 2 | Q64: 2 | R64: - | S64: 0 | T64: -
